fUST/lending_fUST_20240728
["ID","MTS","AMOUNT","RATE_DAILY","PERIOD"]
[333430922,1722125352489,-221.58718463,0.00012572,2]
[333430923,1722125362110,-28.41281537,0.00012572,2]
[333430924,1722125362132,-206.7714858,0.000126,2]
[333430925,1722125362156,-153.0,0.000126,2]
[333430926,1722125362181,-250.0,0.00012606,2]
[333430927,1722125362206,-306.0,0.00012615,2]
[333430928,1722125362228,-250.0,0.00012639,2]
[333430929,1722125362250,-250.0,0.00012673,2]
[333430930,1722125362272,-250.0,0.00012707,2]
[333430931,1722125362294,-250.0,0.0001274,2]
[333430932,1722125362318,-250.0,0.00012774,2]
[333430933,1722125362344,-248.19569883,0.00012808,2]
[333430975,1722125432727,-1.80430117,0.00012808,2]
[333430976,1722125432737,-250.0,0.00012841,2]
[333430977,1722125432750,-250.0,0.00012875,2]
[333430978,1722125432761,-509.07543322,0.000129,2]
[333430979,1722125432772,-269.24912565,0.000129,2]
[333430980,1722125432784,-701.52096869,0.000129,2]
[333430981,1722125432795,-567.84708126,0.000129,2]
[333430982,1722125432804,-250.0,0.00012908,2]
[333430983,1722125432814,-436.10771455,0.00013243,2]
[333430984,1722125432825,-913.496781,0.00013243,2]
[333431097,1722125438760,-3958.52708446,0.00013243,2]
[333431098,1722125438770,-300.0,0.00013355,2]
[333431099,1722125438780,-206.7714858,0.00013356,2]
[333431100,1722125438790,-413.5429716,0.00013356,2]
[333431101,1722125438800,-251.9594377,0.00013396,2]
[333431102,1722125438809,-212.00422926,0.00013402,2]
[333431103,1722125438820,-163.081539,0.00013425,2]
[333431104,1722125438830,-206.7714858,0.00013456,2]
[333431105,1722125438840,-885.43988718,0.00013578,2]
[333431106,1722125438851,-885.43988718,0.00013583,2]
[333431107,1722125438860,-885.43988718,0.00013588,2]
[333431108,1722125438871,-885.43988718,0.00013593,2]
[333431109,1722125438881,-151.0,0.00013598,2]
[333431110,1722125438890,-151.0,0.00013598,2]
[333431111,1722125438899,-151.0,0.00013598,2]
[333431112,1722125438909,-675.367036,0.00013598,2]
[333431113,1722125438918,-675.367036,0.00013598,2]
[333431114,1722125438928,-151.0,0.00013598,2]
[333431115,1722125438939,-1651.51259483,0.00013598,2]
[333431116,1722125438948,-252.425631,0.00013598,2]
[333431117,1722125438959,-252.425631,0.00013598,2]
[333431118,1722125438969,-151.0,0.00013598,2]
[333431119,1722125438978,-186.981783,0.00013598,2]
[333431120,1722125438987,-186.981783,0.00013598,2]
[333431121,1722125438997,-860.870909,0.00013598,2]
[333431122,1722125439010,-860.870909,0.00013598,2]
[333431123,1722125439019,-151.0,0.00013598,2]
[333431124,1722125439031,-151.0,0.00013598,2]
[333431125,1722125439041,-233.096556,0.00013598,2]
[333431126,1722125439050,-389.209916,0.00013598,2]
[333431127,1722125439060,-233.096556,0.00013598,2]
[333431128,1722125439070,-389.209916,0.00013598,2]
[333431129,1722125439080,-151.0,0.00013598,2]
[333431130,1722125439089,-367.592561,0.00013598,2]
[333431131,1722125439099,-151.0,0.00013598,2]
[333431132,1722125439111,-367.592561,0.00013598,2]
[333431133,1722125439124,-151.0,0.00013598,2]
[333431134,1722125439133,-151.0,0.00013598,2]
[333431135,1722125439143,-670.562102,0.00013598,2]
[333431136,1722125439152,-670.562102,0.00013598,2]
[333431137,1722125439162,-151.0,0.00013598,2]
[333431138,1722125439172,-885.43988718,0.00013598,2]
[333431139,1722125439182,-655.456757,0.00013598,2]
[333431140,1722125439192,-655.456757,0.00013598,2]
[333431141,1722125439204,-151.0,0.00013598,2]
[333431142,1722125439213,-423.05675416,0.000136,2]
[333431143,1722125439224,-3596.10221252,0.00013676,5]
[333431144,1722125439234,-151.0,0.00013676,2]
[333431145,1722125439244,-151.0,0.00013676,2]
[333431146,1722125439258,-151.0,0.00013676,2]
[333431147,1722125439268,-151.0,0.00013676,2]
[333431148,1722125439277,-151.0,0.00013676,2]
[333431149,1722125439287,-151.0,0.00013676,2]
[333431150,1722125439296,-151.0,0.00013676,2]
[333431151,1722125439306,-151.0,0.00013676,2]
[333431152,1722125439315,-151.0,0.00013676,2]
[333431153,1722125439325,-151.0,0.00013676,2]
[333431154,1722125439334,-151.0,0.00013676,2]
[333431155,1722125439344,-188.184417,0.00013676,2]
[333431156,1722125439354,-151.0,0.00013676,2]
[333431157,1722125439363,-151.0,0.00013676,2]
[333431158,1722125439372,-151.0,0.00013676,2]
[333431159,1722125439382,-70.46874548,0.00013676,2]
[333431160,1722125439395,-80.53125452,0.00013676,2]
[333431161,1722125439405,-675.367036,0.00013676,2]
[333431162,1722125439414,-675.367036,0.00013676,2]
[333431163,1722125439423,-675.367036,0.00013676,2]
[333431164,1722125439432,-675.367036,0.00013676,2]
[333431165,1722125439442,-151.0,0.00013676,2]
[333431166,1722125439452,-151.0,0.00013676,2]
[333431167,1722125439461,-151.0,0.00013676,2]
[333431168,1722125439471,-151.0,0.00013676,2]
[333431169,1722125439480,-151.0,0.00013676,2]
[333431170,1722125439490,-151.0,0.00013676,2]
[333431171,1722125439501,-151.0,0.00013676,2]
[333431172,1722125439511,-151.0,0.00013676,2]
[333431173,1722125439521,-151.0,0.00013676,2]
[333431174,1722125439531,-151.0,0.00013676,2]
[333431175,1722125439541,-151.0,0.00013676,2]
[333431176,1722125439550,-252.425631,0.00013676,2]
[333431177,1722125439560,-252.425631,0.00013676,2]
[333431178,1722125439570,-252.425631,0.00013676,2]
[333431179,1722125439580,-252.425631,0.00013676,2]
[333431180,1722125439590,-252.425631,0.00013676,2]
[333431181,1722125439599,-252.425631,0.00013676,2]
[333431182,1722125439609,-151.0,0.00013676,2]
[333431183,1722125439618,-151.0,0.00013676,2]
[333431184,1722125439627,-151.0,0.00013676,2]
[333431185,1722125439637,-186.981783,0.00013676,2]
[333431186,1722125439647,-186.981783,0.00013676,2]
[333431187,1722125439656,-186.981783,0.00013676,2]
[333431188,1722125439665,-186.981783,0.00013676,2]
[333431189,1722125439675,-186.981783,0.00013676,2]
[333431190,1722125439685,-186.981783,0.00013676,2]
[333431191,1722125439695,-860.870909,0.00013676,2]
[333431192,1722125439705,-860.870909,0.00013676,2]
[333431193,1722125439714,-860.870909,0.00013676,2]
[333431194,1722125439723,-860.870909,0.00013676,2]
[333431195,1722125439733,-860.870909,0.00013676,2]
[333431196,1722125439742,-860.870909,0.00013676,2]
[333431197,1722125439752,-293.215157,0.00013676,2]
[333431198,1722125439762,-151.0,0.00013676,2]
[333431199,1722125439771,-151.0,0.00013676,2]
[333431200,1722125439780,-151.0,0.00013676,2]
[333431201,1722125439790,-233.096556,0.00013676,2]
[333431202,1722125439799,-233.096556,0.00013676,2]
[333431203,1722125439809,-233.096556,0.00013676,2]
[333431204,1722125439935,-389.209916,0.00013676,2]
[333431205,1722125439950,-389.209916,0.00013676,2]
[333431206,1722125439959,-389.209916,0.00013676,2]
[333431207,1722125439968,-233.096556,0.00013676,2]
[333431208,1722125439978,-233.096556,0.00013676,2]
[333431209,1722125439991,-233.096556,0.00013676,2]
[333431210,1722125440004,-389.209916,0.00013676,2]
[333431211,1722125440013,-389.209916,0.00013676,2]
[333431212,1722125440023,-389.209916,0.00013676,2]
[333431213,1722125440032,-151.0,0.00013676,2]
[333431214,1722125440041,-151.0,0.00013676,2]
[333431215,1722125440051,-151.0,0.00013676,2]
[333431216,1722125440061,-367.592561,0.00013676,2]
[333431217,1722125440070,-367.592561,0.00013676,2]
[333431218,1722125440080,-367.592561,0.00013676,2]
[333431219,1722125440090,-367.592561,0.00013676,2]
[333431220,1722125440100,-151.0,0.00013676,2]
[333431221,1722125440111,-234.22908,0.00013676,2]
[333431222,1722125440126,-367.592561,0.00013676,2]
[333431223,1722125440137,-367.592561,0.00013676,2]
[333431224,1722125440147,-367.592561,0.00013676,2]
[333431225,1722125440157,-151.0,0.00013676,2]
[333431226,1722125440169,-367.592561,0.00013676,2]
[333431227,1722125440178,-151.0,0.00013676,2]
[333431228,1722125440187,-151.0,0.00013676,2]
[333431229,1722125440198,-151.0,0.00013676,2]
[333431230,1722125440207,-151.0,0.00013676,2]
[333431231,1722125440217,-151.0,0.00013676,2]
[333431232,1722125440226,-151.0,0.00013676,2]
[333431234,1722125440235,-151.0,0.00013676,2]
[333431235,1722125440245,-670.562102,0.00013676,2]
[333431236,1722125440256,-670.562102,0.00013676,2]
[333431237,1722125440266,-670.562102,0.00013676,2]
[333431238,1722125440275,-670.562102,0.00013676,2]
[333431239,1722125440284,-670.562102,0.00013676,2]
[333431240,1722125440294,-670.562102,0.00013676,2]
[333431241,1722125440303,-655.456757,0.00013676,2]
[333431242,1722125440312,-655.456757,0.00013676,2]
[333431243,1722125440322,-655.456757,0.00013676,2]
[333431244,1722125440331,-655.456757,0.00013676,2]
[333431245,1722125440341,-151.0,0.00013676,2]
[333431246,1722125440350,-151.0,0.00013676,2]
[333431247,1722125440360,-151.0,0.00013676,2]
[333431248,1722125440369,-292.05306,0.00013676,2]
[333431249,1722125440379,-292.05306,0.00013676,2]
[333431250,1722125440388,-655.456757,0.00013676,2]
[333431251,1722125440398,-292.05306,0.00013676,2]
[333431252,1722125440408,-655.456757,0.00013676,2]
[333431253,1722125440418,-655.456757,0.00013676,2]
[333431254,1722125440427,-655.456757,0.00013676,2]
[333431255,1722125440437,-292.05306,0.00013676,2]
[333431256,1722125440446,-292.05306,0.00013676,2]
[333431257,1722125440456,-292.05306,0.00013676,2]
[333431258,1722125440465,-292.05306,0.00013676,2]
[333431259,1722125440474,-292.05306,0.00013676,2]
[333431260,1722125440483,-151.0,0.00013676,2]
[333431261,1722125440492,-151.0,0.00013676,2]
[333431262,1722125440504,-32368.85595846,0.00013676,2]
[333431263,1722125440517,-2673.7483178,0.00013676,2]
[333432748,1722125563713,-254.76,0.00010959,2]
[333432749,1722125574345,-212.3,0.00010959,2]
[333432750,1722125585707,-176.91,0.00010959,2]
[333432751,1722125597054,-884.6,0.00010959,2]
[333432752,1722125995583,194.74554772,9.999e-05,2]
[333432753,1722126018102,154.66746495,9.999e-05,2]
[333432754,1722126023311,154.66746495,9.999e-05,2]
[333432755,1722126031558,941.81566876,9.999e-05,2]
[333432756,1722126058674,157.27135881,9.999e-05,2]
[333432757,1722126061487,154.80651041,9.999e-05,2]
[333432758,1722126100593,154.85277867,9.999e-05,2]
[333432759,1722126192641,-842.28,0.00010959,2]
[333432760,1722126199321,154.80643637,9.999e-05,2]
[333432765,1722126342168,-166.666666,0.00011713,2]
[333432766,1722126342190,-300.0,0.00011909,2]
[333432767,1722126342212,-624.07688025,0.0001191,2]
[333432768,1722126425090,-300.0,0.00011909,2]
[333432769,1722126425113,-567.81,0.0001191,2]
[333432770,1722126432100,-4262.66871134,0.0001191,2]
[333432771,1722126433104,-1098.19018,0.0001191,2]
[333432772,1722126436239,-1040.3250116,0.0001191,2]
[333432773,1722126437143,-4187.05258383,0.0001191,2]
[333432774,1722126440173,-151.0,0.0001191,2]
[333432775,1722126451430,287.00275421,9.999e-05,2]
[333432776,1722126546103,-300.0,0.00011909,2]
[333432777,1722126546127,-12968.87663298,0.0001191,2]
[333432778,1722126546149,-276.956922,0.00012015,2]
[333432779,1722126546350,-234.2679794,0.00012119,2]
[333432780,1722126546375,-159.309911,0.00012178,2]
[333432781,1722126546398,-159.309911,0.00012218,2]
[333432782,1722126546420,-159.309911,0.00012257,2]
[333432783,1722126546442,-159.309911,0.00012297,2]
[333432784,1722126546465,-159.309911,0.00012337,2]
[333432785,1722126546488,-159.309911,0.00012376,2]
[333432786,1722126546509,-159.309911,0.00012416,2]
[333432787,1722126546530,-159.309911,0.00012456,2]
[333432788,1722126546551,-159.309911,0.00012495,2]
[333432789,1722126546573,-159.309911,0.00012535,2]
[333432790,1722126546594,-159.309911,0.00012575,2]
[333432791,1722126546620,-159.309911,0.00012614,2]
[333432792,1722126546641,-159.309911,0.00012654,2]
[333432793,1722126546664,-159.309911,0.00012694,2]
[333432794,1722126546686,-159.309911,0.00012733,2]
[333432795,1722126546707,-159.309911,0.00012773,2]
[333432796,1722126546728,-158.70988962,0.00012813,2]
[333432817,1722126631930,-0.60002138,0.00012813,2]
[333432818,1722126631940,-585.63738859,0.00013343,2]
[333432819,1722126631952,-510.30323151,0.00013343,2]
[333432820,1722126631963,-3210.3,0.00013343,2]
[333432939,1722126639876,-1001.89095991,0.00013343,2]
[333432941,1722126639885,-163.081539,0.00013425,2]
[333432943,1722126639895,-446.9686805,0.00013529,2]
[333432945,1722126639904,-436.8975249,0.00013549,2]
[333432947,1722126639914,-216.60982815,0.00013586,2]
[333432950,1722126639926,-1763.21176084,0.00013586,2]
[333432952,1722126639935,-300.0,0.00013597,2]
[333432954,1722126639946,-1679.85299682,0.00013598,2]
[333432956,1722126639956,-19376.28594383,0.00013676,2]
[333432958,1722126639968,-671.77936835,0.00013676,2]
[333432960,1722126639980,-12168.56234509,0.00013676,2]
[333433258,1722126642866,-5249.63266864,0.00013676,2]
[333433661,1722126646981,-16728.85645499,0.00013676,2]
[333433663,1722126646991,-27097.5583904,0.00013678,2]
[333433665,1722126647002,-1798.05110626,0.00013686,5]
[333433667,1722126647012,-94877.85221049,0.00013686,2]
[333433669,1722126647021,-151.0,0.00013686,2]
[333433671,1722126647033,-151.0,0.00013686,2]
[333433673,1722126647042,-151.0,0.00013686,2]
[333433676,1722126647052,-151.0,0.00013686,2]
[333433678,1722126647062,-151.0,0.00013686,2]
[333433680,1722126647073,-151.0,0.00013686,2]
[333433682,1722126647083,-157.212796,0.00013686,2]
[333433684,1722126647093,-151.0,0.00013686,2]
[333433686,1722126647102,-151.0,0.00013686,2]
[333433688,1722126647112,-151.0,0.00013686,2]
[333433690,1722126647122,-151.0,0.00013686,2]
[333433692,1722126647132,-151.0,0.00013686,2]
[333433694,1722126647142,-151.0,0.00013686,2]
[333433696,1722126647152,-151.0,0.00013686,2]
[333433698,1722126647162,-151.0,0.00013686,2]
[333433700,1722126647172,-151.0,0.00013686,2]
[333433702,1722126647182,-151.0,0.00013686,2]
[333433704,1722126647191,-151.0,0.00013686,2]
[333433706,1722126647202,-151.0,0.00013686,2]
[333433708,1722126647211,-151.0,0.00013686,2]
[333433710,1722126647221,-151.0,0.00013686,2]
[333433712,1722126647231,-151.0,0.00013686,2]
[333433714,1722126647240,-151.0,0.00013686,2]
[333433716,1722126647250,-151.0,0.00013686,2]
[333433718,1722126647259,-151.0,0.00013686,2]
[333433720,1722126647270,-151.0,0.00013686,2]
[333433722,1722126647279,-151.0,0.00013686,2]
[333433724,1722126647289,-151.0,0.00013686,2]
[333433726,1722126647299,-151.0,0.00013686,2]
[333433728,1722126647308,-156.039416,0.00013686,2]
[333433730,1722126647320,-151.0,0.00013686,2]
[333433732,1722126647329,-151.0,0.00013686,2]
[333433734,1722126647338,-151.0,0.00013686,2]
[333433736,1722126647348,-151.0,0.00013686,2]
[333433738,1722126647358,-151.0,0.00013686,2]
[333433740,1722126647368,-193.234437,0.00013686,2]
[333433742,1722126647377,-193.234437,0.00013686,2]
[333433744,1722126647387,-193.234437,0.00013686,2]
[333433746,1722126647396,-193.234437,0.00013686,2]
[333433748,1722126647405,-193.234437,0.00013686,2]
[333433750,1722126647415,-193.234437,0.00013686,2]
[333433752,1722126647425,-193.234437,0.00013686,2]
[333433754,1722126647435,-193.234437,0.00013686,2]
[333433756,1722126647445,-193.234437,0.00013686,2]
[333433758,1722126647455,-193.234437,0.00013686,2]
[333433760,1722126647465,-151.0,0.00013686,2]
[333433762,1722126647475,-151.0,0.00013686,2]
[333433765,1722126647484,-151.0,0.00013686,2]
[333433766,1722126647495,-151.0,0.00013686,2]
[333433768,1722126647506,-151.0,0.00013686,2]
[333433770,1722126647516,-373.624839,0.00013686,2]
[333433773,1722126647525,-373.624839,0.00013686,2]
[333433775,1722126647535,-373.624839,0.00013686,2]
[333433777,1722126647545,-373.624839,0.00013686,2]
[333433779,1722126647555,-373.624839,0.00013686,2]
[333433781,1722126647565,-373.624839,0.00013686,2]
[333433783,1722126647579,-373.624839,0.00013686,2]
[333433785,1722126647588,-373.624839,0.00013686,2]
[333433788,1722126647598,-373.624839,0.00013686,2]
[333433790,1722126647608,-373.624839,0.00013686,2]
[333433792,1722126647618,-151.0,0.00013686,2]
[333433794,1722126647629,-151.0,0.00013686,2]
[333433796,1722126647642,-430.934162,0.00013686,2]
[333433798,1722126647654,-430.934162,0.00013686,2]
[333433800,1722126647663,-430.934162,0.00013686,2]
[333433802,1722126647673,-430.934162,0.00013686,2]
[333433804,1722126647685,-430.934162,0.00013686,2]
[333433806,1722126647695,-151.0,0.00013686,2]
[333433809,1722126647706,-430.934162,0.00013686,2]
[333433811,1722126647716,-430.934162,0.00013686,2]
[333433813,1722126647728,-151.0,0.00013686,2]
[333433815,1722126647737,-151.0,0.00013686,2]
[333433817,1722126647746,-430.934162,0.00013686,2]
[333433819,1722126647756,-430.934162,0.00013686,2]
[333433821,1722126647766,-151.0,0.00013686,2]
[333433823,1722126647776,-430.934162,0.00013686,2]
[333433825,1722126647786,-541.898204,0.00013686,2]
[333433827,1722126647795,-541.898204,0.00013686,2]
[333433829,1722126647806,-541.898204,0.00013686,2]
[333433831,1722126647815,-541.898204,0.00013686,2]
[333433833,1722126647828,-151.0,0.00013686,2]
[333433835,1722126647838,-151.0,0.00013686,2]
[333433837,1722126647847,-151.0,0.00013686,2]
[333433839,1722126647857,-151.0,0.00013686,2]
[333433842,1722126647866,-151.0,0.00013686,2]
[333433843,1722126647877,-151.0,0.00013686,2]
[333433845,1722126647886,-151.0,0.00013686,2]
[333433847,1722126647896,-151.0,0.00013686,2]
[333433850,1722126647906,-151.0,0.00013686,2]
[333433852,1722126647916,-151.0,0.00013686,2]
[333433854,1722126647926,-151.0,0.00013686,2]
[333433856,1722126647935,-151.0,0.00013686,2]
[333433858,1722126647945,-151.0,0.00013686,2]
[333433860,1722126647955,-151.0,0.00013686,2]
[333433862,1722126647964,-151.0,0.00013686,2]
[333433864,1722126647974,-151.0,0.00013686,2]
[333433866,1722126647983,-211.493052,0.00013686,2]
[333433868,1722126647993,-151.0,0.00013686,2]
[333433870,1722126648003,-151.0,0.00013686,2]
[333433872,1722126648012,-171.561649,0.00013686,2]
[333433874,1722126648023,-151.0,0.00013686,2]
[333433876,1722126648034,-151.0,0.00013686,2]
[333433878,1722126648043,-151.0,0.00013686,2]
[333433880,1722126648054,-151.0,0.00013686,2]
[333433882,1722126648065,-151.455378,0.00013686,2]
[333433884,1722126648076,-151.455378,0.00013686,2]
[333433886,1722126648086,-151.455378,0.00013686,2]
[333433889,1722126648097,-151.455378,0.00013686,2]
[333433891,1722126648107,-151.455378,0.00013686,2]
[333433893,1722126648118,-151.455378,0.00013686,2]
[333433895,1722126648129,-151.455378,0.00013686,2]
[333433897,1722126648139,-151.455378,0.00013686,2]
[333433914,1722126648296,-151.455378,0.00013686,2]
[333433916,1722126648308,-151.455378,0.00013686,2]
[333433918,1722126648318,-151.0,0.00013686,2]
[333433920,1722126648329,-151.0,0.00013686,2]
[333433922,1722126648340,-151.0,0.00013686,2]
[333433924,1722126648351,-248.151094,0.00013686,2]
[333433926,1722126648361,-182.781836,0.00013686,2]
[333433928,1722126648370,-182.781836,0.00013686,2]
[333433930,1722126648381,-182.781836,0.00013686,2]
[333433932,1722126648392,-182.781836,0.00013686,2]
[333433934,1722126648402,-182.781836,0.00013686,2]
[333433936,1722126648413,-182.781836,0.00013686,2]
[333433938,1722126648422,-182.781836,0.00013686,2]
[333433940,1722126648432,-182.781836,0.00013686,2]
[333433942,1722126648442,-182.781836,0.00013686,2]
[333433944,1722126648452,-182.781836,0.00013686,2]
[333433946,1722126648461,-151.0,0.00013686,2]
[333433948,1722126648471,-151.0,0.00013686,2]
[333433950,1722126648480,-151.0,0.00013686,2]
[333433952,1722126648490,-151.0,0.00013686,2]
[333433954,1722126648500,-151.0,0.00013686,2]
[333433956,1722126648510,-162.507934,0.00013686,2]
[333433958,1722126648519,-162.507934,0.00013686,2]
[333433960,1722126648529,-162.507934,0.00013686,2]
[333433962,1722126648539,-162.507934,0.00013686,2]
[333433964,1722126648548,-162.507934,0.00013686,2]
[333433966,1722126648558,-256.17595,0.00013686,2]
[333433968,1722126648567,-162.507934,0.00013686,2]
[333433970,1722126648578,-256.17595,0.00013686,2]
[333433972,1722126648587,-162.507934,0.00013686,2]
[333433975,1722126648597,-256.17595,0.00013686,2]
[333433976,1722126648606,-162.507934,0.00013686,2]
[333433979,1722126648616,-256.17595,0.00013686,2]
[333433981,1722126648626,-162.507934,0.00013686,2]
[333433983,1722126648636,-162.507934,0.00013686,2]
[333433984,1722126648650,-256.17595,0.00013686,2]
[333433987,1722126648660,-256.17595,0.00013686,2]
[333433989,1722126648671,-256.17595,0.00013686,2]
[333433991,1722126648680,-256.17595,0.00013686,2]
[333433993,1722126648689,-256.17595,0.00013686,2]
[333433995,1722126648699,-256.17595,0.00013686,2]
[333433997,1722126648708,-151.0,0.00013686,2]
[333433999,1722126648719,-151.0,0.00013686,2]
[333434001,1722126648729,-151.0,0.00013686,2]
[333434003,1722126648739,-151.0,0.00013686,2]
[333434005,1722126648748,-151.0,0.00013686,2]
[333434007,1722126648757,-151.0,0.00013686,2]
[333434009,1722126648767,-151.0,0.00013686,2]
[333434011,1722126648777,-151.0,0.00013686,2]
[333434013,1722126648786,-151.0,0.00013686,2]
[333434015,1722126648796,-634.580941,0.00013686,2]
[333434017,1722126648805,-151.0,0.00013686,2]
[333434019,1722126648814,-634.580941,0.00013686,2]
[333434021,1722126648826,-634.580941,0.00013686,2]
[333434023,1722126648838,-634.580941,0.00013686,2]
[333434025,1722126648848,-634.580941,0.00013686,2]
[333434027,1722126648858,-634.580941,0.00013686,2]
[333434029,1722126648870,-634.580941,0.00013686,2]
[333434031,1722126648880,-634.580941,0.00013686,2]
[333434033,1722126648891,-634.580941,0.00013686,2]
[333434035,1722126648901,-634.580941,0.00013686,2]
[333434037,1722126648911,-151.0,0.00013686,2]
[333434039,1722126648920,-151.0,0.00013686,2]
[333434041,1722126648930,-151.0,0.00013686,2]
[333434044,1722126648941,-151.0,0.00013686,2]
[333434046,1722126648951,-151.0,0.00013686,2]
[333434048,1722126648961,-151.0,0.00013686,2]
[333434050,1722126648971,-151.0,0.00013686,2]
[333434052,1722126648980,-151.0,0.00013686,2]
[333434054,1722126648990,-151.0,0.00013686,2]
[333434056,1722126649000,-151.0,0.00013686,2]
[333434058,1722126649010,-151.0,0.00013686,2]
[333434060,1722126649019,-151.0,0.00013686,2]
[333434062,1722126649029,-151.0,0.00013686,2]
[333434064,1722126649038,-390.980384,0.00013686,2]
[333434066,1722126649048,-390.980384,0.00013686,2]
[333434068,1722126649059,-390.980384,0.00013686,2]
[333434070,1722126649070,-390.980384,0.00013686,2]
[333434072,1722126649083,-390.980384,0.00013686,2]
[333434074,1722126649093,-390.980384,0.00013686,2]
[333434076,1722126649102,-390.980384,0.00013686,2]
[333434078,1722126649111,-390.980384,0.00013686,2]
[333434080,1722126649124,-390.980384,0.00013686,2]
[333434082,1722126649133,-390.980384,0.00013686,2]
[333434083,1722126649143,-151.0,0.00013686,2]
[333434085,1722126649152,-151.0,0.00013686,2]
[333434087,1722126649161,-151.0,0.00013686,2]
[333434089,1722126649171,-151.0,0.00013686,2]
[333434091,1722126649182,-151.0,0.00013686,2]
[333434093,1722126649194,-27097.5583904,0.00013688,2]
[333434095,1722126649204,-151.0,0.00013688,2]
[333434097,1722126649214,-151.0,0.00013688,2]
[333434099,1722126649224,-151.0,0.00013688,2]
[333434101,1722126649233,-151.0,0.00013688,2]
[333434102,1722126649243,-151.0,0.00013688,2]
[333434103,1722126649252,-151.0,0.00013688,2]
[333434104,1722126649261,-151.0,0.00013688,2]
[333434105,1722126649271,-151.0,0.00013688,2]
[333434106,1722126649281,-151.0,0.00013688,2]
[333434107,1722126649290,-151.0,0.00013688,2]
[333434108,1722126649299,-151.0,0.00013688,2]
[333434109,1722126649308,-151.0,0.00013688,2]
[333434110,1722126649318,-151.0,0.00013688,2]
[333434111,1722126649332,-151.0,0.00013688,2]
[333434112,1722126649341,-151.0,0.00013688,2]
[333434113,1722126649352,-151.0,0.00013688,2]
[333434114,1722126649361,-151.0,0.00013688,2]
[333434115,1722126649370,-266.09218,0.00013688,2]
[333434116,1722126649380,-193.234437,0.00013688,2]
[333434117,1722126649389,-193.234437,0.00013688,2]
[333434118,1722126649398,-193.234437,0.00013688,2]
[333434120,1722126649407,-193.234437,0.00013688,2]
[333434122,1722126649417,-193.234437,0.00013688,2]
[333434124,1722126649426,-193.234437,0.00013688,2]
[333434126,1722126649435,-193.234437,0.00013688,2]
[333434128,1722126649446,-193.234437,0.00013688,2]
[333434130,1722126649455,-373.624839,0.00013688,2]
[333434132,1722126649466,-373.624839,0.00013688,2]
[333434134,1722126649476,-373.624839,0.00013688,2]
[333434136,1722126649487,-373.624839,0.00013688,2]
[333434138,1722126649497,-373.624839,0.00013688,2]
[333434140,1722126649507,-373.624839,0.00013688,2]
[333434142,1722126649517,-373.624839,0.00013688,2]
[333434144,1722126649527,-373.624839,0.00013688,2]
[333434146,1722126649537,-373.624839,0.00013688,2]
[333434148,1722126649547,-373.624833,0.00013688,2]
[333434150,1722126649558,-430.934162,0.00013688,2]
[333434152,1722126649568,-430.934162,0.00013688,2]
[333434154,1722126649583,-430.934162,0.00013688,2]
[333434156,1722126649592,-430.934162,0.00013688,2]
[333434158,1722126649601,-430.934162,0.00013688,2]
[333434160,1722126649611,-151.0,0.00013688,2]
[333434162,1722126649620,-151.0,0.00013688,2]
[333434164,1722126649630,-151.0,0.00013688,2]
[333434166,1722126649643,-430.934162,0.00013688,2]